bitfinex-derivatives/quotes_BTCF0:USTF0_20250724
["timestamp","ask_amount","ask_price","bid_price","bid_amount"]
[1753318486147,2.39532444,119160.0,119150.0,0.8208861]
[1753318486655,2.39532444,119160.0,119150.0,1.03008027]
[1753318487157,2.39532444,119160.0,119150.0,0.98475184]
[1753318487350,2.47078295,119160.0,119150.0,0.98475184]
[1753318487650,2.67997712,119160.0,119150.0,0.94334184]
[1753318487951,2.47078295,119160.0,119150.0,0.94334184]
[1753318488153,2.39532444,119160.0,119150.0,0.94334184]
[1753318488545,2.39532444,119160.0,119150.0,0.98475184]
[1753318492854,2.47078295,119160.0,119150.0,0.98475184]
[1753318493643,2.45573276,119160.0,119150.0,0.77555767]
[1753318493845,2.45573276,119160.0,119150.0,0.98475184]
[1753318495757,3.02572693,119160.0,119150.0,0.89181184]
[1753318497160,2.81653276,119160.0,119150.0,0.89181184]
[1753318497658,2.96531861,119160.0,119150.0,0.89181184]
[1753318497853,2.75612444,119160.0,119150.0,0.89181184]
[1753318498058,2.75612444,119160.0,119150.0,0.68261767]
[1753318498059,2.96531861,119160.0,119150.0,0.68261767]
[1753318498361,2.96531861,119160.0,119150.0,0.89181184]
[1753318499156,2.75612444,119160.0,119150.0,0.89181184]
[1753318499363,2.96531861,119160.0,119150.0,0.89181184]
[1753318499667,2.96531861,119160.0,119130.0,0.3608]
[1753318499668,0.3625817,119140.0,119130.0,0.2607276]
[1753318499961,1.29865852,119140.0,119130.0,0.77675446]
[1753318500553,1.08946435,119140.0,119130.0,0.77675446]
[1753318501062,1.29865852,119140.0,119130.0,0.77675446]
[1753318501264,1.08946435,119140.0,119130.0,0.77675446]
[1753318501458,1.29865852,119140.0,119130.0,0.77675446]
[1753318501768,1.29865852,119140.0,119130.0,0.77775446]
[1753318502161,1.08946435,119140.0,119130.0,0.77975446]
[1753318504266,1.08946435,119140.0,119130.0,0.77875446]
[1753318504466,1.09046435,119140.0,119130.0,0.82276446]
[1753318504864,1.09046435,119140.0,119130.0,0.82076446]
[1753318505056,1.09146435,119140.0,119130.0,0.82076446]
[1753318508271,1.30065852,119140.0,119130.0,0.82076446]
[1753318508571,1.30043618,119140.0,119130.0,0.82076446]
[1753318510763,1.09124201,119140.0,119130.0,0.82076446]
[1753318512071,1.09124201,119140.0,119130.0,0.85706446]
[1753318519774,1.09124201,119140.0,119130.0,0.64787029]
[1753318519969,1.09124201,119140.0,119130.0,0.85706446]
[1753318520274,1.09097875,119140.0,119130.0,0.85706446]
[1753318520973,1.09097875,119140.0,119130.0,0.64787029]
[1753318521173,1.09097875,119140.0,119130.0,0.85706446]
[1753318523779,1.09097875,119140.0,119130.0,0.82706446]
[1753318524780,1.30017292,119140.0,119130.0,0.79076446]
[1753318525384,1.30017292,119140.0,119130.0,0.82706446]
[1753318527076,1.30017292,119140.0,119130.0,0.79076446]
[1753318527282,1.30017292,119140.0,119130.0,0.73851177]
[1753318527781,1.30027477,119140.0,119130.0,0.73861362]
[1753318528676,1.30027477,119140.0,119130.0,0.74691779]
[1753318528877,1.30027477,119140.0,119130.0,0.79092779]
[1753318531283,1.09097875,119140.0,119130.0,0.79092779]
[1753318531485,1.30027477,119140.0,119130.0,0.79092779]
[1753318531984,1.30027477,119140.0,119130.0,0.82722779]
[1753318533385,1.30027477,119140.0,119130.0,0.68708362]
[1753318533579,1.36068348,119140.0,119130.0,0.68708362]
[1753318533785,1.36068348,119140.0,119130.0,0.73994362]
[1753318534086,1.36068348,119140.0,119130.0,0.78352362]
[1753318535584,1.15138746,119140.0,119130.0,0.78352362]
[1753318535785,1.36068348,119140.0,119130.0,0.78352362]
[1753318536383,1.15138746,119140.0,119130.0,0.78352362]
[1753318536589,1.36068348,119140.0,119130.0,0.78352362]
[1753318537086,1.36068348,119140.0,119130.0,0.79201957]
[1753318538086,1.36068348,119140.0,119130.0,1.15281957]
[1753318538780,1.15138746,119140.0,119130.0,1.18977957]
[1753318539086,1.15138746,119140.0,119130.0,1.18989957]
[1753318543294,1.15140666,119140.0,119130.0,1.18989957]
[1753318543686,1.09099795,119140.0,119130.0,1.18989957]
[1753318546088,1.30029397,119140.0,119130.0,1.18989957]
[1753318546591,1.09099795,119140.0,119130.0,1.18989957]
[1753318546894,1.36070268,119140.0,119130.0,1.18989957]
[1753318550095,0.9838473,119140.0,119130.0,1.18989957]
[1753318550296,1.151629,119140.0,119130.0,1.18989957]
[1753318550597,1.151629,119140.0,119130.0,0.98060355]
[1753318550799,1.151629,119140.0,119130.0,1.18989957]
[1753318552700,1.09122029,119140.0,119130.0,1.18989957]
[1753318556103,1.09135948,119140.0,119130.0,1.18989957]
[1753318558102,0.92357778,119140.0,119130.0,1.18989957]
[1753318559203,1.09135948,119140.0,119130.0,1.18989957]
[1753318561203,1.09035948,119140.0,119130.0,1.18989957]
[1753318561702,1.08935948,119140.0,119130.0,1.18989957]
[1753318561893,1.08935948,119140.0,119130.0,0.67060355]
[1753318562098,1.08935948,119140.0,119130.0,1.22989957]
[1753318563310,1.2986555,119140.0,119130.0,1.22989957]
[1753318564110,1.2986555,119140.0,119130.0,1.21989957]
[1753318564306,1.50795152,119140.0,119130.0,0.1677876]
[1753318564506,0.3268558,119130.0,119120.0,0.67407472]
[1753318564709,0.59207123,119130.0,119120.0,0.80294472]
[1753318564915,0.71819521,119130.0,119120.0,0.82683472]
[1753318565218,0.71819521,119130.0,119120.0,0.90230472]
[1753318566420,0.71819521,119130.0,119120.0,0.94015472]
[1753318567014,0.71819521,119130.0,119120.0,0.90230472]
[1753318568806,1.13940392,119130.0,119120.0,0.90230472]
[1753318569008,1.07899521,119130.0,119120.0,0.80294472]
[1753318569419,0.86969919,119130.0,119120.0,0.80294472]
[1753318569712,1.07899521,119130.0,119120.0,0.82683472]
[1753318569916,1.07899521,119130.0,119120.0,0.85698472]
[1753318570118,0.86969919,119130.0,119120.0,0.85698472]
[1753318570320,1.07899521,119130.0,119120.0,0.85698472]
[1753318571716,0.86969919,119130.0,119120.0,0.85698472]
[1753318571922,1.65887521,119130.0,119120.0,0.85698472]
[1753318572122,1.71928392,119130.0,119120.0,0.90230472]
[1753318573720,1.71928392,119130.0,119120.0,1.11160074]
[1753318574619,1.71928392,119130.0,119120.0,0.90230472]
[1753318574818,1.35848392,119130.0,119120.0,0.90230472]
[1753318575120,1.71928392,119130.0,119120.0,0.90230472]
[1753318575319,1.71928392,119130.0,119120.0,0.6476887]
[1753318575621,1.71928392,119130.0,119120.0,0.85698472]
[1753318575820,1.71928392,119130.0,119120.0,0.90230472]
[1753318576521,1.71928392,119130.0,119120.0,0.80294472]
[1753318576823,1.71928392,119130.0,119120.0,0.5936487]
[1753318577315,1.71928392,119130.0,119120.0,0.80294472]
[1753318578323,1.71928392,119130.0,119120.0,0.76099342]
[1753318578623,1.71928392,119130.0,119120.0,0.5097466]
[1753318578823,1.13940392,119130.0,119120.0,0.71904262]
[1753318579023,1.71924392,119130.0,119120.0,0.71904262]
[1753318579824,1.65883521,119130.0,119120.0,0.5097466]
[1753318580226,1.71924392,119130.0,119120.0,0.5097466]
[1753318580726,1.71924392,119130.0,119120.0,0.3]
[1753318580927,1.71924392,119130.0,119120.0,0.4678098]
[1753318582523,1.13940392,119130.0,119120.0,0.4678098]
[1753318582727,1.71924392,119130.0,119120.0,0.4678098]
[1753318583526,1.13940392,119130.0,119120.0,0.4678098]
[1753318583729,1.73425372,119130.0,119120.0,0.42246711]
[1753318583921,1.73425372,119130.0,119120.0,0.1878098]
[1753318585329,0.9451577,119130.0,119120.0,0.37710582]
[1753318585627,1.73429372,119130.0,119120.0,0.39710582]
[1753318586127,1.5249977,119130.0,119120.0,0.39710582]
[1753318586427,1.5249977,119130.0,119120.0,0.1878098]
[1753318586627,1.73429372,119130.0,119120.0,0.39710582]
[1753318587226,1.73429372,119130.0,119120.0,0.45114582]
[1753318587424,1.94358974,119130.0,119120.0,0.1678098]
[1753318587626,1.73429372,119130.0,119120.0,0.1678098]
[1753318588931,1.44953919,119130.0,119120.0,0.1678098]
[1753318589131,1.65883521,119130.0,119120.0,0.1678098]
[1753318589835,0.3645998,119120.0,119110.0,0.55701422]
[1753318590133,0.77889473,119120.0,119110.0,0.86701422]
[1753318590830,0.77889473,119120.0,119110.0,0.6577182]
[1753318591029,0.77889473,119120.0,119110.0,0.86701422]
[1753318591437,0.77889473,119120.0,119110.0,0.6577182]
[1753318591629,0.98819075,119120.0,119110.0,0.5197676]
[1753318591834,1.34899075,119120.0,119110.0,0.72906362]
[1753318593639,1.28863836,119120.0,119110.0,0.72906362]
[1753318593947,1.28863836,119120.0,119110.0,0.4778239]
[1753318595338,1.34899075,119120.0,119110.0,0.4778239]
[1753318599138,0.93039871,119120.0,119110.0,0.4778239]
[1753318599343,1.34899075,119120.0,119110.0,0.4778239]
[1753318599844,1.34899075,119120.0,119110.0,0.31]
[1753318602038,0.2173739,119110.0,119100.0,0.01889573]
[1753318602236,1.73892535,119110.0,119100.0,0.08889573]
[1753318602542,1.71662143,119110.0,119100.0,0.01889573]
[1753318603445,1.832698,119100.0,119090.0,0.04082]
[1753318603641,0.2461821,119090.0,119080.0,0.91529091]
[1753318603840,1.16885753,119090.0,119080.0,1.28529091]
[1753318604043,1.29556416,119090.0,119080.0,1.28529091]
[1753318604251,1.29556416,119090.0,119080.0,1.29360664]
[1753318604942,1.29556416,119090.0,119080.0,1.08431062]
[1753318605143,1.29556416,119090.0,119080.0,1.29360664]
[1753318605443,0.50638814,119090.0,119080.0,1.08431062]
[1753318605741,1.08630814,119090.0,119080.0,1.50290266]
[1753318606548,1.08630814,119090.0,119080.0,1.08431062]
[1753318606749,1.08630814,119090.0,119080.0,1.50290266]
[1753318608251,1.08770804,119090.0,119080.0,1.50290266]
[1753318608450,1.08770804,119090.0,119080.0,1.08431062]
[1753318608650,1.08770804,119090.0,119080.0,1.50290266]
[1753318612954,1.08770804,119090.0,119080.0,1.08431062]
[1753318613156,1.08770804,119090.0,119080.0,1.50290266]
[1753318616558,0.91985604,119090.0,119080.0,1.50290266]
[1753318620462,1.08770814,119090.0,119080.0,1.50290266]
[1753318621067,0.91985604,119090.0,119080.0,1.50290266]
[1753318621459,0.91985604,119090.0,119080.0,1.08431062]
[1753318621660,0.91985604,119090.0,119080.0,0.75985853]
[1753318621866,0.91985604,119090.0,119080.0,1.17845057]
[1753318622968,0.91985604,119090.0,119080.0,0.75985853]
[1753318623163,0.91985604,119090.0,119080.0,1.17845057]
[1753318623666,0.98020843,119090.0,119080.0,1.17845057]
[1753318624165,0.91985604,119090.0,119080.0,1.17845057]
[1753318625169,0.33853604,119090.0,119080.0,1.17845057]
[1753318625365,0.76301604,119090.0,119080.0,1.74854659]
[1753318625566,0.76345604,119090.0,119080.0,1.74854659]
[1753318625873,0.76345604,119090.0,119080.0,1.53925057]
[1753318626958,0.18217604,119090.0,119080.0,2.12053057]
[1753318627163,0.76381604,119090.0,119080.0,2.12053057]
[1753318630174,0.18217604,119090.0,119080.0,2.12053057]
[1753318630374,0.76361604,119090.0,119080.0,2.12053057]
[1753318632076,2.26361604,119090.0,119080.0,2.12053057]
[1753318635173,2.26361604,119090.0,119080.0,2.41793057]
[1753318635378,1.68217604,119090.0,119080.0,2.41793057]
[1753318635577,2.26333604,119090.0,119080.0,2.41793057]
[1753318640280,1.68217604,119090.0,119080.0,2.41793057]
[1753318640486,2.26301604,119090.0,119080.0,2.41793057]
[1753318641383,1.68217604,119090.0,119080.0,2.41793057]
[1753318641582,2.26293604,119090.0,119080.0,2.41793057]
[1753318642088,2.26293604,119090.0,119080.0,1.83665057]
[1753318642287,2.34647604,119090.0,119080.0,1.83665057]
[1753318642488,1.76571604,119090.0,119080.0,1.83665057]
[1753318642686,2.34627604,119090.0,119080.0,1.83665057]
[1753318643691,2.51412804,119090.0,119080.0,1.83665057]
[1753318644290,2.72342406,119090.0,119080.0,1.08459853]
[1753318644484,2.72342406,119090.0,119080.0,0.89227455]
[1753318644686,2.78377645,119090.0,119080.0,0.89227455]
[1753318645388,2.78377645,119090.0,119080.0,0.93650455]
[1753318645690,2.78377645,119090.0,119080.0,0.97355455]
[1753318645892,2.78377645,119090.0,119080.0,1.18285057]
[1753318649595,2.78377645,119090.0,119080.0,1.18386789]
[1753318649894,2.57448043,119090.0,119080.0,1.18386789]
[1753318650096,2.57448043,119090.0,119080.0,1.48126789]
[1753318650299,2.51412804,119090.0,119080.0,1.48126789]
[1753318650690,2.51412804,119090.0,119080.0,1.48167127]
[1753318650895,1.93356804,119090.0,119080.0,1.48167127]
[1753318651096,2.51420804,119090.0,119080.0,1.48167127]
[1753318654696,2.72350406,119090.0,119080.0,1.48167127]
[1753318656193,2.72350406,119090.0,119080.0,1.44462127]
[1753318660504,2.51372814,119090.0,119080.0,1.48116127]
[1753318660691,1.76571604,119090.0,119080.0,1.84196127]
[1753318660893,2.51372814,119090.0,119080.0,1.84196127]
[1753318661787,1.93356814,119090.0,119080.0,1.54456127]
[1753318661988,2.51372814,119090.0,119080.0,1.54456127]
[1753318664897,2.34325604,119090.0,119080.0,1.54460508]
[1753318666303,2.34321604,119090.0,119080.0,1.54460508]
[1753318667201,1.76309604,119090.0,119080.0,1.54460508]
[1753318667401,2.34321604,119090.0,119080.0,1.54460508]
[1753318667807,2.34321604,119090.0,119080.0,1.84200508]
[1753318670008,1.76309604,119090.0,119080.0,1.84200508]
[1753318670209,2.34321604,119090.0,119080.0,1.84200508]
[1753318670411,1.76309604,119090.0,119080.0,1.84200508]
[1753318670610,2.34333742,119090.0,119080.0,1.84200508]
[1753318671413,1.76321742,119090.0,119080.0,1.84200508]
[1753318671713,2.34333742,119090.0,119080.0,1.84200508]
[1753318673113,2.34332981,119090.0,119080.0,1.84200508]
[1753318673708,2.4036822,119090.0,119080.0,1.84200508]
[1753318673909,2.4036822,119090.0,119080.0,1.84205068]
[1753318674109,1.8235622,119090.0,119080.0,1.84205068]
[1753318674410,2.34328981,119090.0,119080.0,1.84205068]
[1753318674806,1.76320981,119090.0,119080.0,1.84205068]
[1753318675015,2.34328981,119090.0,119080.0,2.0513467]
[1753318676216,2.32498663,119090.0,119080.0,2.0513467]
[1753318676418,2.34328851,119090.0,119080.0,1.84205068]
[1753318678024,0.92018851,119090.0,119080.0,1.84205068]
[1753318678210,0.65871,119100.0,119090.0,0.246092]
[1753318678415,0.62337,119100.0,119090.0,1.81347438]
[1753318678718,0.62352507,119100.0,119090.0,1.81347438]
[1753318678909,0.62352507,119100.0,119090.0,1.81498449]
[1753318678910,0.64717507,119100.0,119090.0,1.81498449]
[1753318679111,0.70606507,119100.0,119090.0,1.81498449]
[1753318679419,0.58019507,119100.0,119090.0,1.81498449]
[1753318679613,0.00015507,119100.0,119090.0,2.11238449]
[1753318680221,0.03810507,119100.0,119090.0,2.11238449]
[1753318683120,0.03810507,119100.0,119090.0,2.11242856]
[1753318685121,0.03810507,119100.0,119090.0,2.69238856]
[1753318690229,0.05630141,119100.0,119090.0,2.69238856]
[1753318692032,0.05630141,119100.0,119090.0,2.69243375]
[1753318694127,0.10180141,119100.0,119090.0,2.69243375]
[1753318697645,0.12730141,119100.0,119090.0,2.69243375]
[1753318697850,0.16397141,119100.0,119090.0,2.69243375]
[1753318702248,0.12730141,119100.0,119090.0,2.69243375]
[1753318703248,0.22001141,119100.0,119090.0,2.69243375]
[1753318708643,0.22001141,119100.0,119090.0,2.69215375]
[1753318709647,0.22001141,119100.0,119090.0,2.69055438]
[1753318709853,0.22001141,119100.0,119090.0,2.69219786]
[1753318710152,0.22001141,119100.0,119090.0,2.11251786]
[1753318710953,0.22001141,119100.0,119090.0,2.69215786]
[1753318714557,0.2803638,119100.0,119090.0,2.69215786]
[1753318715650,0.2436938,119100.0,119090.0,2.69215786]
[1753318718258,0.18334141,119100.0,119090.0,2.69215786]
[1753318718654,0.15300141,119100.0,119090.0,2.69220398]
[1753318719554,0.05630141,119100.0,119090.0,2.69220398]
[1753318720851,0.13950239,119110.0,119100.0,0.3623079]
[1753318721056,0.06044182,119110.0,119100.0,2.3276801]
[1753318721361,0.13983444,119110.0,119100.0,2.6250801]
[1753318721655,0.13983444,119110.0,119100.0,2.6267697]
[1753318722156,0.12609262,119110.0,119100.0,2.6267697]
[1753318727356,0.12609262,119110.0,119100.0,2.62681237]
[1753318732059,0.61512675,119130.0,119120.0,0.3622798]
[1753318732263,0.25432675,119130.0,119120.0,2.01755184]
[1753318732472,0.61754079,119130.0,119120.0,2.01928411]
[1753318732861,0.63545575,119130.0,119120.0,2.01928411]
[1753318733365,0.63545575,119130.0,119120.0,1.44000411]
[1753318733668,0.575059,119130.0,119120.0,1.44000411]
[1753318734071,0.7428547,119130.0,119120.0,1.44000411]
[1753318734566,0.7428547,119130.0,119120.0,1.43000411]
[1753318734964,0.80325145,119130.0,119120.0,1.43000411]
[1753318735468,0.63545575,119130.0,119120.0,1.43000411]
[1753318736166,0.63545575,119130.0,119120.0,1.43004922]
[1753318736469,0.575059,119130.0,119120.0,1.43004922]
[1753318736669,0.7428547,119130.0,119120.0,1.43004922]
[1753318737873,0.95215072,119130.0,119120.0,0.6962832]
[1753318738073,0.95215072,119130.0,119120.0,0.90557922]
[1753318739172,0.7428547,119130.0,119120.0,0.90557922]
[1753318739472,0.95215072,119130.0,119120.0,0.90557922]
[1753318740173,0.95215072,119130.0,119120.0,0.92875922]
[1753318740373,0.7428547,119130.0,119120.0,0.92875922]
[1753318740774,0.7428547,119130.0,119120.0,0.95852922]
[1753318741170,0.7428547,119130.0,119120.0,1.31852922]
[1753318741377,0.7428547,119130.0,119120.0,1.36302922]
[1753318743777,0.7428547,119130.0,119120.0,0.94443718]
[1753318744079,0.80325145,119130.0,119120.0,1.30302922]
[1753318744965,1.01254747,119130.0,119120.0,0.78702938]
[1753318745165,1.53119072,119130.0,119120.0,0.46702938]
[1753318745371,1.53119072,119130.0,119120.0,0.6763254]
[1753318745566,1.59158747,119130.0,119120.0,0.6763254]
[1753318747677,1.59158747,119130.0,119120.0,0.3789254]
[1753318751582,1.59158747,119130.0,119120.0,0.4309754]
[1753318752282,1.53119072,119130.0,119120.0,0.4309754]
[1753318752884,1.53111072,119130.0,119120.0,0.8109754]
[1753318753082,1.53111072,119130.0,119120.0,0.4309754]
[1753318753583,0.7428547,119130.0,119120.0,0.8109754]
[1753318753880,1.60652923,119130.0,119120.0,0.64031456]
[1753318754381,1.60652923,119130.0,119120.0,0.43101854]
[1753318755484,1.60652923,119130.0,119120.0,0.37896854]
[1753318756588,1.66693295,119130.0,119120.0,0.37896854]
[1753318756783,1.59147444,119130.0,119120.0,0.37896854]
[1753318758487,1.57355948,119130.0,119120.0,0.37896854]
[1753318758792,1.59143724,119130.0,119120.0,0.58826456]
[1753318759989,1.59143724,119130.0,119120.0,0.37896854]
[1753318760486,1.01251724,119130.0,119120.0,0.37896854]
[1753318760689,1.59131724,119130.0,119120.0,0.37896854]
[1753318760992,1.59131724,119130.0,119120.0,0.58826456]
[1753318762291,0.80322122,119130.0,119120.0,0.58826456]
[1753318762481,1.38202122,119130.0,119120.0,0.58826456]
[1753318762684,1.59131724,119130.0,119120.0,0.58830962]
[1753318762989,1.59131724,119130.0,119120.0,0.16971758]
[1753318763288,1.59131724,119130.0,119120.0,0.58830962]
[1753318763694,1.53091352,119130.0,119120.0,0.58830962]
[1753318765492,1.60637203,119130.0,119120.0,0.58830962]
[1753318765790,1.60637203,119130.0,119120.0,0.3790136]
[1753318765989,1.60638895,119130.0,119120.0,0.3790136]
[1753318767389,1.60638895,119130.0,119120.0,0.58830962]
[1753318767793,1.60639136,119130.0,119120.0,0.58830962]
[1753318768288,1.60639136,119130.0,119120.0,0.3790136]
[1753318768490,1.60639136,119130.0,119120.0,0.58830962]
[1753318769895,1.39709534,119130.0,119120.0,0.58830962]
[1753318770093,1.60639136,119130.0,119120.0,0.58830962]
[1753318771896,1.39709534,119130.0,119120.0,0.58830962]
[1753318772194,1.60639136,119130.0,119120.0,0.58830962]
[1753318772594,1.60639136,119130.0,119120.0,0.52029643]
[1753318772800,1.53093285,119130.0,119120.0,0.52029643]
[1753318772992,1.32163683,119130.0,119120.0,0.52029643]
[1753318773297,1.53093285,119130.0,119120.0,0.52029643]
[1753318773696,1.60648023,119130.0,119120.0,0.52029643]
[1753318774192,1.60648023,119130.0,119120.0,0.52073589]
[1753318776590,0.65058851,119130.0,119120.0,1.30376191]
[1753318776785,1.02328113,119130.0,119120.0,1.30376191]
[1753318776987,0.99794113,119130.0,119120.0,1.30376191]
[1753318777184,0.41946113,119130.0,119120.0,1.39186589]
[1753318777387,0.99794113,119130.0,119120.0,1.39186589]
[1753318777588,0.63714113,119130.0,119120.0,1.60116191]
[1753318777992,0.68032113,119130.0,119120.0,1.60116191]
[1753318778293,0.76301113,119130.0,119120.0,1.60116191]
[1753318779898,0.93080683,119130.0,119120.0,1.60116191]
[1753318780195,0.93072683,119130.0,119120.0,1.60116191]
[1753318780397,0.35232683,119130.0,119120.0,1.60116191]
[1753318780598,0.93072683,119130.0,119120.0,1.60116191]
[1753318781291,0.76293113,119130.0,119120.0,1.60116191]
[1753318783298,0.79271113,119130.0,119120.0,1.60116191]
[1753318787195,0.96050683,119130.0,119120.0,1.60116191]
[1753318787394,0.79271113,119130.0,119120.0,1.39186589]
[1753318789203,0.79271113,119130.0,119120.0,1.60120767]
[1753318790003,1.15351113,119130.0,119120.0,1.60120767]
[1753318790210,0.79271113,119130.0,119120.0,1.60120767]
[1753318791497,0.7923163,119130.0,119120.0,1.60120767]
[1753318792803,0.7923163,119130.0,119120.0,1.39191165]
[1753318795909,0.960112,119130.0,119120.0,1.39191165]
[1753318796510,0.7923163,119130.0,119120.0,1.39191165]
[1753318798010,0.9601119,119130.0,119120.0,1.39191165]
[1753318798612,0.7919163,119130.0,119120.0,1.60120767]
[1753318800212,0.959712,119130.0,119120.0,1.60120767]
[1753318800410,0.2139163,119130.0,119120.0,1.60120767]
[1753318800611,0.7919163,119130.0,119120.0,1.60120767]
[1753318803815,0.85235456,119130.0,119120.0,1.60120767]
[1753318805014,0.85235456,119130.0,119120.0,1.39191165]
[1753318807119,0.85235456,119130.0,119120.0,0.97331961]
[1753318807319,0.85235456,119130.0,119120.0,1.01191165]
[1753318807521,0.85235456,119130.0,119120.0,1.32191165]
[1753318807817,0.85235456,119130.0,119120.0,0.59331961]
[1753318808006,0.85235456,119130.0,119120.0,1.37195751]
[1753318808319,0.27435456,119130.0,119120.0,1.37195751]
[1753318808620,0.85215456,119130.0,119120.0,1.37195751]
[1753318810023,0.7917163,119130.0,119120.0,1.01195751]
[1753318810213,0.7917163,119130.0,119120.0,1.36195751]
[1753318810517,0.2139163,119130.0,119120.0,1.36195751]
[1753318810714,0.7917163,119130.0,119120.0,0.94336547]
[1753318810911,0.7917163,119130.0,119120.0,1.36195751]
[1753318811924,0.7917163,119130.0,119120.0,0.94336547]
[1753318812115,0.7917163,119130.0,119120.0,1.36195751]
[1753318812518,0.85216099,119130.0,119120.0,1.36195751]
[1753318812718,1.38075669,119130.0,119120.0,1.36195751]
[1753318813223,1.01995669,119130.0,119120.0,1.36195751]
[1753318813723,0.959512,119130.0,119120.0,1.36195751]
[1753318814313,1.38075669,119130.0,119120.0,1.36195751]
[1753318814718,1.01995669,119130.0,119120.0,1.36195751]
[1753318815127,1.01995669,119130.0,119120.0,1.34195751]
[1753318815423,0.959512,119130.0,119120.0,1.34195751]
[1753318816520,1.01995669,119130.0,119120.0,1.34195751]
[1753318816927,1.01995669,119130.0,119120.0,1.01195751]
[1753318817127,1.01995669,119130.0,119120.0,1.38195751]
[1753318817723,1.01995669,119130.0,119120.0,1.0120008]
[1753318818027,0.959512,119130.0,119120.0,1.3320008]
[1753318818416,1.320312,119130.0,119120.0,1.3920008]
[1753318818824,0.95180802,119130.0,119120.0,0.29988215]
[1753318819018,1.52952802,119130.0,119120.0,0.50917817]
[1753318819525,1.52952802,119130.0,119120.0,0.67698757]
[1753318821627,1.52952802,119130.0,119120.0,0.37958757]
[1753318822122,1.320232,119130.0,119120.0,0.37958757]
[1753318822328,1.320232,119130.0,119120.0,0.58888359]
[1753318822926,1.58997271,119130.0,119120.0,0.58888359]
[1753318823927,1.38067669,119130.0,119120.0,0.58888359]
[1753318824123,0.80295669,119130.0,119120.0,1.09210359]
[1753318824323,0.5747163,119130.0,119120.0,1.12586359]
[1753318824529,1.3217516,119130.0,119120.0,1.12586359]
[1753318824720,1.3217516,119130.0,119120.0,0.70727155]
[1753318824922,1.3217516,119130.0,119120.0,1.12586359]
[1753318825124,1.3217516,119130.0,119120.0,1.12210359]
[1753318826327,0.9609516,119130.0,119120.0,1.12210359]
[1753318827528,1.02139629,119130.0,119120.0,1.12210359]
[1753318827826,1.02139629,119130.0,119120.0,0.70351155]
[1753318828032,1.23069231,119130.0,119120.0,0.74210359]
[1753318828230,1.02139629,119130.0,119120.0,0.74210359]
[1753318828427,1.02139629,119130.0,119120.0,1.11210359]
[1753318828629,1.02139629,119130.0,119120.0,0.28786155]
[1753318828836,1.02139629,119130.0,119120.0,1.04645359]
[1753318829728,1.02139629,119130.0,119120.0,0.58888359]
[1753318830734,1.02139629,119130.0,119120.0,0.95888359]
[1753318832338,1.38219629,119130.0,119120.0,0.95888359]
[1753318832539,1.38219629,119130.0,119120.0,0.58888359]
[1753318832931,1.59149231,119130.0,119120.0,0.17029155]
[1753318833138,1.59149231,119130.0,119120.0,0.58888359]
[1753318833535,1.59149231,119130.0,119120.0,0.63978359]
[1753318833930,1.59149231,119130.0,119120.0,0.58888359]
[1753318834132,1.59149231,119130.0,119120.0,0.37958757]
[1753318834834,1.59149231,119130.0,119120.0,0.17029155]
[1753318835236,1.59149231,119130.0,119120.0,0.37958757]
[1753318835430,1.59144344,119130.0,119120.0,0.37958757]
[1753318836441,1.38214742,119130.0,119120.0,0.37963088]
[1753318836644,1.59144344,119130.0,119120.0,0.37963088]
[1753318838040,1.59144344,119130.0,119120.0,0.17033486]
[1753318838341,1.59144344,119130.0,119120.0,0.37963088]
[1753318838843,1.38214742,119130.0,119120.0,0.37963088]
[1753318839040,1.59144344,119130.0,119120.0,0.37963088]
[1753318839445,1.59144344,119130.0,119120.0,0.67703088]
[1753318840645,1.38214742,119130.0,119120.0,0.67703088]
[1753318840849,1.59144344,119130.0,119120.0,0.67703088]
[1753318841148,1.53104762,119130.0,119120.0,0.67703088]
[1753318841844,1.59144344,119130.0,119120.0,0.67703088]
[1753318845950,1.59144344,119130.0,119120.0,0.67707566]
[1753318847443,1.59144344,119130.0,119120.0,0.46777964]
[1753318847648,1.59144344,119130.0,119120.0,0.67707566]
[1753318847850,1.38214742,119130.0,119120.0,0.67707566]
[1753318848153,1.59144344,119130.0,119120.0,0.67707566]
[1753318848450,1.59144344,119130.0,119120.0,0.88637168]
[1753318848945,1.59144344,119130.0,119120.0,0.93930168]
[1753318850153,1.59144344,119130.0,119120.0,0.98004168]
[1753318853057,1.53104762,119130.0,119120.0,0.98004168]
[1753318853353,1.3217516,119130.0,119120.0,0.98004168]
[1753318853555,1.53104762,119130.0,119120.0,0.98004168]
[1753318853954,1.3217516,119130.0,119120.0,0.70273286]
[1753318854149,1.53104762,119130.0,119120.0,0.70273286]
[1753318854655,1.53104762,119130.0,119120.0,0.70277749]
[1753318855256,1.60660322,119130.0,119120.0,0.70277749]
[1753318855450,1.53104762,119130.0,119120.0,0.70277749]
[1753318855656,1.53104762,119130.0,119120.0,0.72668749]
[1753318856461,1.53104762,119130.0,119120.0,0.76342749]
[1753318856654,1.53104762,119130.0,119120.0,0.72668749]
[1753318856864,1.53104762,119130.0,119120.0,0.68594749]
[1753318857158,1.53104762,119130.0,119120.0,0.66203749]
[1753318857561,1.60660398,119130.0,119120.0,0.66203749]
[1753318858361,1.60660398,119130.0,119120.0,0.70277749]
[1753318859475,1.60660398,119130.0,119120.0,0.49348147]
[1753318859662,1.60660398,119130.0,119120.0,0.70277749]
[1753318860272,1.60660398,119130.0,119120.0,0.66203749]
[1753318861369,1.53104762,119130.0,119120.0,0.66203749]
[1753318862367,1.53104762,119130.0,119120.0,0.70277749]
[1753318862568,1.53104762,119130.0,119120.0,0.76342749]
[1753318862767,1.53104762,119130.0,119120.0,0.97272351]
[1753318862963,1.53104762,119130.0,119120.0,0.93598351]
[1753318863174,1.53104762,119130.0,119120.0,0.87133351]
[1753318863372,1.60660623,119130.0,119120.0,0.87133351]
[1753318863575,1.60660623,119130.0,119120.0,0.60910749]
[1753318863772,1.60660623,119130.0,119120.0,0.30001487]
[1753318864071,0.3510523,119110.0,119100.0,0.74244312]
[1753318864280,1.51793058,119110.0,119100.0,0.85754656]
[1753318864570,1.64345304,119110.0,119100.0,0.85754656]
[1753318865277,1.64345304,119110.0,119100.0,1.06684258]
[1753318865874,1.64345304,119110.0,119100.0,0.85754656]
[1753318866278,1.43415702,119110.0,119100.0,0.85754656]
[1753318866468,1.64345304,119110.0,119100.0,0.89183656]
[1753318866867,1.64345304,119110.0,119100.0,1.10113258]
[1753318867980,1.64345304,119110.0,119100.0,0.89183656]
[1753318868275,1.70390699,119110.0,119100.0,0.89183656]
[1753318868975,1.70390699,119110.0,119100.0,0.59443656]
[1753318870274,1.70390699,119110.0,119100.0,0.80373258]
[1753318871678,1.70390699,119110.0,119100.0,0.59443656]
[1753318872081,1.70390699,119110.0,119100.0,0.80373258]
[1753318873780,1.64345304,119110.0,119100.0,0.80373258]
[1753318875485,1.43415702,119110.0,119100.0,0.80373258]
[1753318875674,1.64345304,119110.0,119100.0,0.80373258]
[1753318875979,1.64345304,119110.0,119100.0,0.59443656]
[1753318879183,1.64345304,119110.0,119100.0,0.38514054]
[1753318879383,1.64345304,119110.0,119100.0,0.59443656]
[1753318879581,1.64345304,119110.0,119100.0,0.06720414]
[1753318879880,1.64345304,119110.0,119100.0,0.1678364]